[Event "Titled Tuesday Blitz June 6 Early 2023"]
[White "le-castor-faineant"]
[Black "Bettalli, Francesco"]
[BlackFideId "2816453"]
[WhiteElo "2231"]
[BlackElo "2216"]
[Result "0-1"]
[Round "3"]
[TimeControl "180+2"]
[Date "2023.06.06"]
[WhiteClock "0:00:03"]
[BlackClock "0:00:36"]
[Board "178"]

1. e4 {[%clk 0:03:00]}  g6 {[%clk 0:03:00]} 2. d4 {[%clk 0:03:00]}  Bg7 {[%clk 0:03:01]} 3. Nf3 {[%clk 0:02:59]}  c6 {[%clk 0:03:01]} 4. Bd3 {[%clk 0:02:59]}  d6 {[%clk 0:03:02]} 5. c3 {[%clk 0:02:59]}  Nd7 {[%clk 0:03:02]} 6. O-O {[%clk 0:02:59]}  Ngf6 {[%clk 0:03:03]} 7. Bg5 {[%clk 0:02:59]}  O-O {[%clk 0:03:04]} 8. Nbd2 {[%clk 0:03:00]}  Qc7 {[%clk 0:03:03]} 9. Qe2 {[%clk 0:02:59]}  e5 {[%clk 0:03:03]} 10. Rfe1 {[%clk 0:02:58]}  b6 {[%clk 0:03:00]} 11. a4 {[%clk 0:02:58]}  a5 {[%clk 0:03:00]} 12. Nc4 {[%clk 0:02:55]}  Re8 {[%clk 0:02:59]} 13. h3 {[%clk 0:02:53]}  h6 {[%clk 0:02:59]} 14. Bh4 {[%clk 0:02:41]}  Nh5 {[%clk 0:02:59]} 15. Qc2 {[%clk 0:02:33]}  g5 {[%clk 0:02:50]} 16. Bg3 {[%clk 0:02:30]}  Nxg3 {[%clk 0:02:47]} 17. fxg3 {[%clk 0:02:31]}  Ba6 {[%clk 0:02:42]} 18. Ne3 {[%clk 0:02:27]}  Nf6 {[%clk 0:02:41]} 19. Bxa6 {[%clk 0:02:25]}  Rxa6 {[%clk 0:02:41]} 20. dxe5 {[%clk 0:02:25]}  dxe5 {[%clk 0:02:40]} 21. Nf5 {[%clk 0:02:25]}  Raa8 {[%clk 0:02:36]} 22. Rad1 {[%clk 0:02:12]}  Rad8 {[%clk 0:02:32]} 23. Rd2 {[%clk 0:01:46]}  Rxd2 {[%clk 0:02:31]} 24. Nxd2 {[%clk 0:01:45]}  Bf8 {[%clk 0:02:26]} 25. Nc4 {[%clk 0:01:43]}  b5 {[%clk 0:02:22]} 26. axb5 {[%clk 0:01:41]}  cxb5 {[%clk 0:02:22]} 27. Nce3 {[%clk 0:01:42]}  Kh7 {[%clk 0:02:20]} 28. Nd5 {[%clk 0:01:40]}  Qc5+ {[%clk 0:02:17]} 29. Kh1 {[%clk 0:01:38]}  Re6 {[%clk 0:02:04]} 30. Rd1 {[%clk 0:01:27]}  Nh5 {[%clk 0:01:57]} 31. g4 {[%clk 0:01:20]}  Nf4 {[%clk 0:01:55]} 32. Nxf4 {[%clk 0:01:20]}  exf4 {[%clk 0:01:55]} 33. Rd5 {[%clk 0:01:17]}  Qc4 {[%clk 0:01:50]} 34. Rd4 {[%clk 0:00:59]}  Qf1+ {[%clk 0:01:49]} 35. Kh2 {[%clk 0:00:59]}  Bc5 {[%clk 0:01:49]} 36. e5 {[%clk 0:00:37]}  Rg6 {[%clk 0:01:18]} 37. Qd1 {[%clk 0:00:21]}  Qxd1 {[%clk 0:01:10]} 38. Rxd1 {[%clk 0:00:22]}  Re6 {[%clk 0:01:08]} 39. Rd5 {[%clk 0:00:22]}  Rc6 {[%clk 0:01:03]} 40. b4 {[%clk 0:00:18]}  axb4 {[%clk 0:01:02]} 41. cxb4 {[%clk 0:00:19]}  Bxb4 {[%clk 0:01:03]} 42. Rxb5 {[%clk 0:00:20]}  Bc3 {[%clk 0:01:04]} 43. Rb7 {[%clk 0:00:19]}  Bxe5 {[%clk 0:00:58]} 44. Rxf7+ {[%clk 0:00:19]}  Kg6 {[%clk 0:00:58]} 45. Ne7+ {[%clk 0:00:14]}  Kxf7 {[%clk 0:00:58]} 46. Nxc6 {[%clk 0:00:15]}  Bc3 {[%clk 0:00:54]} 47. Na7 {[%clk 0:00:09]}  Ke6 {[%clk 0:00:51]} 48. Nb5 {[%clk 0:00:10]}  Bb2 {[%clk 0:00:51]} 49. Nc7+ {[%clk 0:00:08]}  Kd6 {[%clk 0:00:50]} 50. Na6 {[%clk 0:00:06]}  Bc3 {[%clk 0:00:47]} 51. h4 {[%clk 0:00:03]}  Kc6 {[%clk 0:00:43]} 52. hxg5 {[%clk 0:00:03]}  hxg5 {[%clk 0:00:43]} 53. Nb8+ {[%clk 0:00:02]}  Kc7 {[%clk 0:00:43]} 54. Na6+ {[%clk 0:00:02]}  Kb6 {[%clk 0:00:44]} 55. Nb8 {[%clk 0:00:02]}  Bd4 {[%clk 0:00:41]} 56. Nd7+ {[%clk 0:00:03]}  Kc6 {[%clk 0:00:41]} 57. Nf8 {[%clk 0:00:03]}  Bf6 {[%clk 0:00:36]} 0-1


[Site "https://www.chess.com"]

[Event "Titled Tuesday Blitz June 6 Early 2023"]
[White "mohsengabr2002"]
[Black "Szyszylo, Rafal"]
[BlackFideId "1109626"]
[WhiteElo "2231"]
[BlackElo "1951"]
[Result "0-1"]
[Round "3"]
[TimeControl "180+2"]
[Date "2023.06.06"]
[WhiteClock "0:01:29"]
[BlackClock "0:00:57"]
[Board "179"]

1. e4 {[%clk 0:03:00]}  d6 {[%clk 0:03:00]} 2. d3 {[%clk 0:03:00]}  Nf6 {[%clk 0:03:01]} 3. Nd2 {[%clk 0:03:00]}  e5 {[%clk 0:03:01]} 4. g3 {[%clk 0:03:00]}  g6 {[%clk 0:03:01]} 5. Bg2 {[%clk 0:03:01]}  Bg7 {[%clk 0:03:02]} 6. Ngf3 {[%clk 0:03:02]}  O-O {[%clk 0:03:01]} 7. O-O {[%clk 0:03:03]}  Nc6 {[%clk 0:02:59]} 8. h3 {[%clk 0:03:01]}  Bd7 {[%clk 0:02:58]} 9. Re1 {[%clk 0:02:59]}  Ne8 {[%clk 0:02:57]} 10. c3 {[%clk 0:02:58]}  f5 {[%clk 0:02:56]} 11. exf5 {[%clk 0:02:56]}  gxf5 {[%clk 0:02:56]} 12. Nh4 {[%clk 0:02:55]}  f4 {[%clk 0:02:54]} 13. Ne4 {[%clk 0:02:54]}  Nf6 {[%clk 0:02:45]} 14. Nxf6+ {[%clk 0:02:52]}  Bxf6 {[%clk 0:02:42]} 15. Nf3 {[%clk 0:02:48]}  Qc8 {[%clk 0:02:38]} 16. g4 {[%clk 0:02:47]}  h5 {[%clk 0:02:34]} 17. Nh2 {[%clk 0:02:31]}  Kh8 {[%clk 0:02:23]} 18. Be4 {[%clk 0:02:25]}  Rg8 {[%clk 0:02:22]} 19. f3 {[%clk 0:02:25]}  Bh4 {[%clk 0:02:21]} 20. Re2 {[%clk 0:02:25]}  Qf8 {[%clk 0:02:00]} 21. d4 {[%clk 0:02:24]}  Qf6 {[%clk 0:01:55]} 22. Qd3 {[%clk 0:02:18]}  exd4 {[%clk 0:01:49]} 23. Bd2 {[%clk 0:02:16]}  Ne5 {[%clk 0:01:39]} 24. Qc2 {[%clk 0:02:07]}  hxg4 {[%clk 0:01:36]} 25. Nxg4 {[%clk 0:02:05]}  Bxg4 {[%clk 0:01:32]} 26. hxg4 {[%clk 0:02:05]}  d3 {[%clk 0:01:31]} 27. Qd1 {[%clk 0:01:57]}  dxe2 {[%clk 0:01:30]} 28. Qxe2 {[%clk 0:01:58]}  c6 {[%clk 0:01:19]} 29. Qh2 {[%clk 0:01:58]}  Kg7 {[%clk 0:01:17]} 30. Bxf4 {[%clk 0:01:58]}  Rh8 {[%clk 0:01:09]} 31. Kg2 {[%clk 0:01:54]}  Bg5 {[%clk 0:01:08]} 32. Bxe5 {[%clk 0:01:50]}  Rxh2+ {[%clk 0:01:06]} 33. Bxh2 {[%clk 0:01:49]}  d5 {[%clk 0:01:06]} 34. Bf5 {[%clk 0:01:49]}  Re8 {[%clk 0:01:05]} 35. Bd3 {[%clk 0:01:45]}  Bf4 {[%clk 0:01:02]} 36. Bg1 {[%clk 0:01:45]}  Qh4 {[%clk 0:01:00]} 37. Bd4+ {[%clk 0:01:37]}  Kg8 {[%clk 0:01:00]} 38. Rf1 {[%clk 0:01:28]}  Qg3+ {[%clk 0:00:56]} 39. Kh1 {[%clk 0:01:29]}  Qh2# {[%clk 0:00:57]} 0-1


[Site "https://www.chess.com"]

[Event "Titled Tuesday Blitz June 6 Early 2023"]
[White "Marcziter, Dmitrii"]
[Black "Larina, Maria"]
[WhiteFideId "13900765"]
[BlackFideId "24113182"]
[WhiteElo "2162"]
[BlackElo "1848"]
[Result "1-0"]
[Round "3"]
[TimeControl "180+2"]
[Date "2023.06.06"]
[WhiteClock "0:00:17"]
[BlackClock "0:00:02"]
[Board "183"]

1. d4 {[%clk 0:03:00]}  f5 {[%clk 0:02:59]} 2. g3 {[%clk 0:02:59]}  Nf6 {[%clk 0:02:59]} 3. Bg2 {[%clk 0:02:59]}  g6 {[%clk 0:03:00]} 4. Nh3 {[%clk 0:02:59]}  d6 {[%clk 0:02:59]} 5. c3 {[%clk 0:02:58]}  Bg7 {[%clk 0:02:59]} 6. Qb3 {[%clk 0:02:50]}  Nc6 {[%clk 0:02:52]} 7. Ng5 {[%clk 0:02:42]}  d5 {[%clk 0:02:50]} 8. h4 {[%clk 0:02:37]}  h6 {[%clk 0:02:47]} 9. Nh3 {[%clk 0:02:36]}  O-O {[%clk 0:02:06]} 10. Nd2 {[%clk 0:02:32]}  e6 {[%clk 0:02:04]} 11. Nf3 {[%clk 0:02:31]}  Ne4 {[%clk 0:02:00]} 12. Bf4 {[%clk 0:02:28]}  Na5 {[%clk 0:01:48]} 13. Qa4 {[%clk 0:02:26]}  c6 {[%clk 0:01:47]} 14. Be5 {[%clk 0:02:23]}  Nc4 {[%clk 0:01:46]} 15. Bxg7 {[%clk 0:02:19]}  Kxg7 {[%clk 0:01:47]} 16. Qc2 {[%clk 0:02:16]}  Qf6 {[%clk 0:01:39]} 17. Nf4 {[%clk 0:02:14]}  Bd7 {[%clk 0:01:37]} 18. Nd3 {[%clk 0:02:13]}  b6 {[%clk 0:01:33]} 19. b3 {[%clk 0:02:08]}  Ncd6 {[%clk 0:01:30]} 20. Nfe5 {[%clk 0:02:06]}  Rad8 {[%clk 0:01:24]} 21. Nf4 {[%clk 0:02:04]}  Be8 {[%clk 0:01:12]} 22. h5 {[%clk 0:01:56]}  g5 {[%clk 0:01:11]} 23. Nfg6 {[%clk 0:01:56]}  Bxg6 {[%clk 0:01:10]} 24. Nxg6 {[%clk 0:01:55]}  Rfe8 {[%clk 0:01:05]} 25. e3 {[%clk 0:01:52]}  Nf7 {[%clk 0:01:03]} 26. O-O-O {[%clk 0:01:44]}  Nh8 {[%clk 0:01:00]} 27. Ne5 {[%clk 0:01:43]}  Nf7 {[%clk 0:00:59]} 28. f4 {[%clk 0:01:19]}  g4 {[%clk 0:00:50]} 29. Bxe4 {[%clk 0:01:16]}  dxe4 {[%clk 0:00:50]} 30. Kb1 {[%clk 0:01:13]}  Nxe5 {[%clk 0:00:48]} 31. fxe5 {[%clk 0:01:06]}  Qg5 {[%clk 0:00:42]} 32. Qe2 {[%clk 0:01:03]}  b5 {[%clk 0:00:34]} 33. Rde1 {[%clk 0:00:58]}  Rd7 {[%clk 0:00:33]} 34. c4 {[%clk 0:00:58]}  a6 {[%clk 0:00:27]} 35. Rd1 {[%clk 0:00:56]}  Rb8 {[%clk 0:00:18]} 36. Ka1 {[%clk 0:00:54]}  b4 {[%clk 0:00:18]} 37. Rhe1 {[%clk 0:00:49]}  Rbd8 {[%clk 0:00:17]} 38. Qd2 {[%clk 0:00:45]}  a5 {[%clk 0:00:18]} 39. a3 {[%clk 0:00:43]}  Qe7 {[%clk 0:00:17]} 40. a4 {[%clk 0:00:42]}  Rb8 {[%clk 0:00:16]} 41. Qc2 {[%clk 0:00:40]}  Rbd8 {[%clk 0:00:16]} 42. Rd2 {[%clk 0:00:40]}  Qg5 {[%clk 0:00:16]} 43. Qa2 {[%clk 0:00:37]}  Qxh5 {[%clk 0:00:14]} 44. Rh2 {[%clk 0:00:36]}  Qg5 {[%clk 0:00:15]} 45. Qe2 {[%clk 0:00:35]}  Rh8 {[%clk 0:00:14]} 46. Reh1 {[%clk 0:00:35]}  h5 {[%clk 0:00:14]} 47. Rh4 {[%clk 0:00:35]}  Kg6 {[%clk 0:00:13]} 48. Rf1 {[%clk 0:00:33]}  Rhh7 {[%clk 0:00:13]} 49. Rd1 {[%clk 0:00:32]}  Rhf7 {[%clk 0:00:10]} 50. Rh2 {[%clk 0:00:31]}  Rh7 {[%clk 0:00:10]} 51. Qf2 {[%clk 0:00:29]}  Rh8 {[%clk 0:00:07]} 52. Rdh1 {[%clk 0:00:25]}  Rhh7 {[%clk 0:00:06]} 53. Rh4 {[%clk 0:00:25]}  Rd8 {[%clk 0:00:06]} 54. Kb2 {[%clk 0:00:23]}  Rdh8 {[%clk 0:00:05]} 55. Kc2 {[%clk 0:00:23]}  Rd8 {[%clk 0:00:05]} 56. Rd1 {[%clk 0:00:21]}  Qe7 {[%clk 0:00:04]} 57. Kd2 {[%clk 0:00:20]}  c5 {[%clk 0:00:05]} 58. Ke2 {[%clk 0:00:20]}  cxd4 {[%clk 0:00:05]} 59. exd4 {[%clk 0:00:20]}  Qg5 {[%clk 0:00:05]} 60. Qe3 {[%clk 0:00:19]}  Qxe3+ {[%clk 0:00:04]} 61. Kxe3 {[%clk 0:00:20]}  Kf7 {[%clk 0:00:04]} 62. d5 {[%clk 0:00:20]}  exd5 {[%clk 0:00:03]} 63. cxd5 {[%clk 0:00:20]}  Rc8 {[%clk 0:00:03]} 64. Kf4 {[%clk 0:00:19]}  Rc3 {[%clk 0:00:03]} 65. Kxf5 {[%clk 0:00:18]}  Rf3+ {[%clk 0:00:04]} 66. Kxe4 {[%clk 0:00:19]}  Rxg3 {[%clk 0:00:04]} 67. Rf1+ {[%clk 0:00:18]}  Ke7 {[%clk 0:00:04]} 68. Rh2 {[%clk 0:00:18]}  Rxb3 {[%clk 0:00:04]} 69. Rc2 {[%clk 0:00:17]}  Kd7 {[%clk 0:00:03]} 70. Rf6 {[%clk 0:00:17]}  Re7 {[%clk 0:00:02]} 71. e6+ {[%clk 0:00:17]} 1-0


[Site "https://www.chess.com"]

[Event "Titled Tuesday Blitz June 6 Early 2023"]
[White "Kriti Mayur Patel"]
[Black "Matveeva, Olga"]
[WhiteFideId "35061780"]
[BlackFideId "24107018"]
[WhiteElo "1306"]
[BlackElo "2009"]
[Result "0-1"]
[Round "3"]
[TimeControl "180+2"]
[Date "2023.06.06"]
[WhiteClock "0:00:14"]
[BlackClock "0:00:06"]
[Board "185"]

1. e4 {[%clk 0:03:00]}  e6 {[%clk 0:03:00]} 2. d4 {[%clk 0:03:00]}  d5 {[%clk 0:03:00]} 3. Nc3 {[%clk 0:03:00]}  Nf6 {[%clk 0:02:59]} 4. e5 {[%clk 0:03:00]}  Nfd7 {[%clk 0:02:56]} 5. f4 {[%clk 0:03:00]}  c5 {[%clk 0:02:55]} 6. Nf3 {[%clk 0:03:01]}  Nc6 {[%clk 0:02:53]} 7. Be3 {[%clk 0:03:01]}  cxd4 {[%clk 0:02:54]} 8. Nxd4 {[%clk 0:03:00]}  Bc5 {[%clk 0:02:52]} 9. Nxc6 {[%clk 0:02:52]}  bxc6 {[%clk 0:02:49]} 10. Bxc5 {[%clk 0:02:52]}  Nxc5 {[%clk 0:02:50]} 11. Bd3 {[%clk 0:02:52]}  Qb6 {[%clk 0:02:41]} 12. b3 {[%clk 0:02:43]}  a5 {[%clk 0:02:20]} 13. Qg4 {[%clk 0:02:36]}  Qb4 {[%clk 0:01:55]} 14. Kd2 {[%clk 0:02:25]}  O-O {[%clk 0:01:52]} 15. h4 {[%clk 0:02:21]}  d4 {[%clk 0:01:51]} 16. h5 {[%clk 0:02:17]}  Qxc3+ {[%clk 0:01:50]} 17. Ke2 {[%clk 0:02:13]}  Nxd3 {[%clk 0:01:49]} 18. cxd3 {[%clk 0:02:12]}  Qc2+ {[%clk 0:01:49]} 19. Ke1 {[%clk 0:02:02]}  Qxd3 {[%clk 0:01:47]} 20. h6 {[%clk 0:01:59]}  Qg6 {[%clk 0:01:44]} 21. Qf3 {[%clk 0:01:52]}  Ba6 {[%clk 0:01:41]} 22. Rh3 {[%clk 0:01:49]}  Qc2 {[%clk 0:01:30]} 23. Qg4 {[%clk 0:01:23]}  g6 {[%clk 0:01:26]} 24. Rd1 {[%clk 0:01:04]}  c5 {[%clk 0:01:18]} 25. Rd2 {[%clk 0:00:58]}  Qe4+ {[%clk 0:01:11]} 26. Kf2 {[%clk 0:00:51]}  c4 {[%clk 0:01:06]} 27. Qg5 {[%clk 0:00:43]}  Qf5 {[%clk 0:00:59]} 28. Qh4 {[%clk 0:00:41]}  c3 {[%clk 0:00:52]} 29. Rxd4 {[%clk 0:00:33]}  c2 {[%clk 0:00:52]} 30. g4 {[%clk 0:00:20]}  c1=Q {[%clk 0:00:45]} 31. gxf5 {[%clk 0:00:20]}  Qf1+ {[%clk 0:00:44]} 32. Kg3 {[%clk 0:00:20]}  Qg1+ {[%clk 0:00:32]} 33. Kf3 {[%clk 0:00:19]}  Bb7+ {[%clk 0:00:17]} 34. Ke2 {[%clk 0:00:16]}  Qxd4 {[%clk 0:00:15]} 35. Qf6 {[%clk 0:00:15]}  Ba6+ {[%clk 0:00:12]} 36. Kf3 {[%clk 0:00:14]}  Qd3+ {[%clk 0:00:09]} 37. Kg4 {[%clk 0:00:14]}  Qe2+ {[%clk 0:00:08]} 38. Kh4 {[%clk 0:00:13]}  Qf2+ {[%clk 0:00:07]} 39. Rg3 {[%clk 0:00:14]}  Qh2+ {[%clk 0:00:06]} 40. Rh3 {[%clk 0:00:14]}  Qxf4# {[%clk 0:00:06]} 0-1


[Site "https://www.chess.com"]

[Event "Titled Tuesday Blitz June 6 Early 2023"]
[White "Tarasova, Viktoriya"]
[Black "KSho99"]
[WhiteFideId "4175840"]
[WhiteElo "2182"]
[BlackElo "2197"]
[Result "1-0"]
[Round "3"]
[TimeControl "180+2"]
[Date "2023.06.06"]
[WhiteClock "0:00:47"]
[BlackClock "0:00:10"]
[Board "187"]

1. d4 {[%clk 0:03:00]}  e6 {[%clk 0:02:59]} 2. c4 {[%clk 0:03:00]}  f5 {[%clk 0:02:59]} 3. Nc3 {[%clk 0:03:00]}  Nf6 {[%clk 0:02:59]} 4. g3 {[%clk 0:03:01]}  d5 {[%clk 0:02:57]} 5. Bg2 {[%clk 0:03:01]}  c6 {[%clk 0:02:56]} 6. Nf3 {[%clk 0:03:02]}  Bd6 {[%clk 0:02:54]} 7. O-O {[%clk 0:03:02]}  O-O {[%clk 0:02:53]} 8. e3 {[%clk 0:03:03]}  Ne4 {[%clk 0:02:49]} 9. Ne2 {[%clk 0:03:03]}  dxc4 {[%clk 0:02:43]} 10. a4 {[%clk 0:03:01]}  b5 {[%clk 0:02:33]} 11. Qc2 {[%clk 0:03:00]}  Na6 {[%clk 0:02:27]} 12. Nd2 {[%clk 0:02:57]}  Nb4 {[%clk 0:02:25]} 13. Qb1 {[%clk 0:02:57]}  Bb7 {[%clk 0:01:18]} 14. Nxe4 {[%clk 0:02:54]}  fxe4 {[%clk 0:01:18]} 15. Bxe4 {[%clk 0:02:55]}  h6 {[%clk 0:01:14]} 16. axb5 {[%clk 0:02:54]}  Rb8 {[%clk 0:01:13]} 17. Rxa7 {[%clk 0:02:25]}  Qb6 {[%clk 0:01:13]} 18. Ra1 {[%clk 0:02:23]}  cxb5 {[%clk 0:01:13]} 19. Bd2 {[%clk 0:02:21]}  Nd3 {[%clk 0:01:06]} 20. f3 {[%clk 0:01:51]}  Bxe4 {[%clk 0:01:01]} 21. fxe4 {[%clk 0:01:51]}  Qb7 {[%clk 0:00:54]} 22. e5 {[%clk 0:01:24]}  Rxf1+ {[%clk 0:00:52]} 23. Qxf1 {[%clk 0:01:23]}  Rf8 {[%clk 0:00:52]} 24. Nf4 {[%clk 0:01:17]}  Nxf4 {[%clk 0:00:23]} 25. gxf4 {[%clk 0:01:07]}  Be7 {[%clk 0:00:17]} 26. Qg2 {[%clk 0:00:51]}  Qxg2+ {[%clk 0:00:17]} 27. Kxg2 {[%clk 0:00:52]}  Rb8 {[%clk 0:00:17]} 28. Ra7 {[%clk 0:00:50]}  Bf8 {[%clk 0:00:17]} 29. Rc7 {[%clk 0:00:49]}  Rb6 {[%clk 0:00:12]} 30. Kf3 {[%clk 0:00:48]}  Kh7 {[%clk 0:00:11]} 31. e4 {[%clk 0:00:47]}  Kg6 {[%clk 0:00:10]} 32. d5 {[%clk 0:00:47]}  exd5 {[%clk 0:00:10]} 33. exd5 {[%clk 0:00:47]} 1-0


[Site "https://www.chess.com"]

[Event "Titled Tuesday Blitz June 6 Early 2023"]
[White "Dwilewicz, Katarzyna"]
[Black "rionelG"]
[WhiteFideId "1148486"]
[WhiteElo "2098"]
[BlackElo "2196"]
[Result "0-1"]
[Round "3"]
[TimeControl "180+2"]
[Date "2023.06.06"]
[WhiteClock "0:00:15"]
[BlackClock "0:00:30"]
[Board "188"]

1. e4 {[%clk 0:03:00]}  c5 {[%clk 0:02:59]} 2. Nf3 {[%clk 0:03:00]}  d6 {[%clk 0:03:00]} 3. d4 {[%clk 0:02:59]}  cxd4 {[%clk 0:03:01]} 4. Nxd4 {[%clk 0:02:59]}  Nf6 {[%clk 0:03:01]} 5. Nc3 {[%clk 0:02:59]}  a6 {[%clk 0:03:02]} 6. h3 {[%clk 0:02:58]}  b5 {[%clk 0:03:00]} 7. g4 {[%clk 0:02:57]}  Bb7 {[%clk 0:03:00]} 8. Bg2 {[%clk 0:02:57]}  h6 {[%clk 0:02:59]} 9. Qe2 {[%clk 0:02:53]}  e6 {[%clk 0:02:57]} 10. a3 {[%clk 0:02:42]}  Nbd7 {[%clk 0:02:56]} 11. f4 {[%clk 0:02:38]}  Qc7 {[%clk 0:02:53]} 12. Be3 {[%clk 0:02:35]}  Rc8 {[%clk 0:02:52]} 13. h4 {[%clk 0:02:30]}  Nc5 {[%clk 0:02:11]} 14. Bf2 {[%clk 0:02:29]}  h5 {[%clk 0:02:07]} 15. g5 {[%clk 0:02:25]}  Ng4 {[%clk 0:02:06]} 16. f5 {[%clk 0:02:13]}  Nxf2 {[%clk 0:01:49]} 17. Qxf2 {[%clk 0:02:07]}  e5 {[%clk 0:01:49]} 18. Nb3 {[%clk 0:02:06]}  d5 {[%clk 0:01:42]} 19. exd5 {[%clk 0:01:55]}  Nxb3 {[%clk 0:01:41]} 20. cxb3 {[%clk 0:01:55]}  b4 {[%clk 0:01:41]} 21. axb4 {[%clk 0:01:42]}  Bxb4 {[%clk 0:01:40]} 22. Rh3 {[%clk 0:01:34]}  O-O {[%clk 0:01:36]} 23. Kf1 {[%clk 0:01:29]}  a5 {[%clk 0:01:26]} 24. Rd1 {[%clk 0:01:28]}  Ba6+ {[%clk 0:01:24]} 25. Ne2 {[%clk 0:01:19]}  Qc1 {[%clk 0:01:08]} 26. Re1 {[%clk 0:00:44]}  Rc2 {[%clk 0:00:52]} 27. Bf3 {[%clk 0:00:38]}  Bxe1 {[%clk 0:00:48]} 28. Qxe1 {[%clk 0:00:34]}  Qxb2 {[%clk 0:00:45]} 29. Bxh5 {[%clk 0:00:28]}  Rc1 {[%clk 0:00:34]} 30. Bf3 {[%clk 0:00:17]}  Rfc8 {[%clk 0:00:33]} 31. h5 {[%clk 0:00:15]}  Rxe1+ {[%clk 0:00:31]} 32. Kxe1 {[%clk 0:00:15]}  Rc2 {[%clk 0:00:31]} 33. h6 {[%clk 0:00:15]}  Rxe2+ {[%clk 0:00:30]} 0-1


[Site "https://www.chess.com"]

[Event "Titled Tuesday Blitz June 6 Early 2023"]
[White "Ruge, Edison"]
[Black "Lopez Del Alamo, Antonio"]
[WhiteFideId "4401000"]
[BlackFideId "2227339"]
[WhiteElo "2175"]
[BlackElo "2175"]
[Result "0-1"]
[Round "3"]
[TimeControl "180+2"]
[Date "2023.06.06"]
[WhiteClock "0:00:07"]
[BlackClock "0:01:00"]
[Board "189"]

1. e4 {[%clk 0:02:44]}  c5 {[%clk 0:02:59]} 2. Nf3 {[%clk 0:02:43]}  e6 {[%clk 0:02:59]} 3. d3 {[%clk 0:02:42]}  Nc6 {[%clk 0:02:59]} 4. Nbd2 {[%clk 0:02:43]}  g6 {[%clk 0:02:59]} 5. g3 {[%clk 0:02:44]}  Bg7 {[%clk 0:02:59]} 6. Bg2 {[%clk 0:02:45]}  Nge7 {[%clk 0:02:59]} 7. h4 {[%clk 0:02:45]}  h6 {[%clk 0:02:58]} 8. h5 {[%clk 0:02:44]}  g5 {[%clk 0:02:58]} 9. O-O {[%clk 0:02:44]}  d5 {[%clk 0:02:40]} 10. Nh2 {[%clk 0:02:44]}  f5 {[%clk 0:02:30]} 11. Re1 {[%clk 0:02:43]}  O-O {[%clk 0:02:26]} 12. c3 {[%clk 0:02:36]}  fxe4 {[%clk 0:02:16]} 13. dxe4 {[%clk 0:02:35]}  d4 {[%clk 0:02:17]} 14. c4 {[%clk 0:02:28]}  Ne5 {[%clk 0:01:55]} 15. Nb3 {[%clk 0:02:19]}  b6 {[%clk 0:01:51]} 16. f4 {[%clk 0:02:20]}  gxf4 {[%clk 0:01:49]} 17. gxf4 {[%clk 0:02:19]}  Nxc4 {[%clk 0:01:49]} 18. e5 {[%clk 0:02:17]}  Nf5 {[%clk 0:01:47]} 19. Bxa8 {[%clk 0:02:15]}  Kh8 {[%clk 0:01:31]} 20. Be4 {[%clk 0:02:01]}  Rg8 {[%clk 0:01:27]} 21. Bxf5 {[%clk 0:02:00]}  exf5 {[%clk 0:01:25]} 22. Kf1 {[%clk 0:01:21]}  Ba6 {[%clk 0:01:20]} 23. Re2 {[%clk 0:00:59]}  Qh4 {[%clk 0:01:13]} 24. Nf3 {[%clk 0:00:37]}  Qh1+ {[%clk 0:01:11]} 25. Ng1 {[%clk 0:00:36]}  Bf6 {[%clk 0:01:06]} 26. Rf2 {[%clk 0:00:08]}  Rxg1+ {[%clk 0:01:02]} 27. Ke2 {[%clk 0:00:07]}  Rxd1 {[%clk 0:01:00]} 0-1


[Site "https://www.chess.com"]

[Event "Titled Tuesday Blitz June 6 Early 2023"]
[White "Hinds, Nathan"]
[Black "Zallio, Luciano de Souza"]
[WhiteFideId "7400730"]
[BlackFideId "2109700"]
[WhiteElo "2001"]
[BlackElo "2057"]
[Result "0-1"]
[Round "3"]
[TimeControl "180+2"]
[Date "2023.06.06"]
[WhiteClock "0:02:26"]
[BlackClock "0:01:24"]
[Board "197"]

1. Nf3 {[%clk 0:03:00]}  d5 {[%clk 0:02:59]} 2. d4 {[%clk 0:03:00]}  Nf6 {[%clk 0:02:58]} 3. g3 {[%clk 0:03:00]}  e6 {[%clk 0:02:58]} 4. c4 {[%clk 0:03:01]}  Be7 {[%clk 0:02:58]} 5. Bg2 {[%clk 0:03:01]}  O-O {[%clk 0:02:58]} 6. O-O {[%clk 0:03:02]}  b6 {[%clk 0:02:58]} 7. Ne5 {[%clk 0:03:02]}  Bb7 {[%clk 0:02:57]} 8. Bg5 {[%clk 0:03:02]}  Nbd7 {[%clk 0:02:56]} 9. Ng6 {[%clk 0:02:56]}  hxg6 {[%clk 0:02:51]} 10. cxd5 {[%clk 0:02:52]}  Bxd5 {[%clk 0:02:48]} 11. Nc3 {[%clk 0:02:48]}  Bxg2 {[%clk 0:02:46]} 12. Kxg2 {[%clk 0:02:49]}  c5 {[%clk 0:02:42]} 13. e3 {[%clk 0:02:40]}  cxd4 {[%clk 0:02:42]} 14. exd4 {[%clk 0:02:40]}  Nd5 {[%clk 0:02:40]} 15. Bxe7 {[%clk 0:02:39]}  Nxe7 {[%clk 0:02:35]} 16. Ne4 {[%clk 0:02:40]}  Nf6 {[%clk 0:02:31]} 17. Ng5 {[%clk 0:02:38]}  Nf5 {[%clk 0:02:31]} 18. Nf3 {[%clk 0:02:35]}  Qd5 {[%clk 0:02:28]} 19. Qd3 {[%clk 0:02:33]}  Ne4 {[%clk 0:02:24]} 20. Rfe1 {[%clk 0:02:32]}  Ng5 {[%clk 0:02:20]} 21. h4 {[%clk 0:02:32]}  Nxf3 {[%clk 0:02:20]} 22. Qxf3 {[%clk 0:02:32]}  Qxf3+ {[%clk 0:02:19]} 23. Kxf3 {[%clk 0:02:33]}  Nxd4+ {[%clk 0:02:19]} 24. Kg2 {[%clk 0:02:33]}  Rac8 {[%clk 0:02:18]} 25. Rad1 {[%clk 0:02:33]}  Rfd8 {[%clk 0:02:17]} 26. Re4 {[%clk 0:02:32]}  Nf5 {[%clk 0:02:10]} 27. Rxd8+ {[%clk 0:02:31]}  Rxd8 {[%clk 0:02:09]} 28. Rc4 {[%clk 0:02:32]}  Rd2 {[%clk 0:02:06]} 29. Rc7 {[%clk 0:02:32]}  Rxb2 {[%clk 0:02:03]} 30. Rxa7 {[%clk 0:02:33]}  f6 {[%clk 0:01:58]} 31. Kf3 {[%clk 0:02:33]}  e5 {[%clk 0:01:56]} 32. Rb7 {[%clk 0:02:30]}  Nd4+ {[%clk 0:01:54]} 33. Ke4 {[%clk 0:02:29]}  Rxf2 {[%clk 0:01:51]} 34. Rxb6 {[%clk 0:02:28]}  Rxa2 {[%clk 0:01:51]} 35. Rb7 {[%clk 0:02:28]}  Rg2 {[%clk 0:01:46]} 36. h5 {[%clk 0:02:24]}  gxh5 {[%clk 0:01:41]} 37. g4 {[%clk 0:02:23]}  Rxg4+ {[%clk 0:01:39]} 38. Kd5 {[%clk 0:02:23]}  h4 {[%clk 0:01:39]} 39. Kd6 {[%clk 0:02:23]}  h3 {[%clk 0:01:39]} 40. Ke7 {[%clk 0:02:24]}  h2 {[%clk 0:01:36]} 41. Rb8+ {[%clk 0:02:25]}  Kh7 {[%clk 0:01:36]} 42. Rb1 {[%clk 0:02:25]}  Rg1 {[%clk 0:01:35]} 43. Rb8 {[%clk 0:02:25]}  h1=Q {[%clk 0:01:33]} 44. Kf7 {[%clk 0:02:25]}  Qd5+ {[%clk 0:01:29]} 45. Kf8 {[%clk 0:02:26]}  Qd6+ {[%clk 0:01:28]} 46. Ke8 {[%clk 0:02:25]}  Qxb8+ {[%clk 0:01:27]} 47. Kf7 {[%clk 0:02:26]}  Qc7+ {[%clk 0:01:27]} 48. Kf8 {[%clk 0:02:26]}  Rb1 {[%clk 0:01:24]} 0-1


[Site "https://www.chess.com"]